bitfinex/quotes_BTCUSD_20250604
["timestamp","ask_amount","ask_price","bid_price","bid_amount"]
[1749042614604,0.345,104890.0,104880.0,0.21312156]
[1749042614810,0.89034341,104890.0,104880.0,0.21312156]
[1749042615020,0.89034341,104890.0,104880.0,0.51312156]
[1749042615444,0.89034341,104890.0,104880.0,0.21312156]
[1749042616079,0.89034341,104890.0,104880.0,0.22766241]
[1749042617562,0.92104341,104890.0,104880.0,0.22754241]
[1749042618232,0.92104341,104890.0,104880.0,0.02726241]
[1749042618450,0.92104341,104890.0,104880.0,0.22750241]
[1749042623021,0.92038171,104890.0,104880.0,0.21288156]
[1749042623728,0.91996814,104890.0,104880.0,0.21288156]
[1749042626207,0.91996814,104890.0,104880.0,0.05496156]
[1749042626447,0.37462473,104890.0,104880.0,0.01272156]
[1749042626709,0.37462473,104890.0,104880.0,0.21224156]
[1749042626710,1.46531155,104890.0,104880.0,0.21224156]
[1749042627906,1.46631155,104890.0,104880.0,0.21224156]
[1749042628159,1.46631155,104890.0,104880.0,0.21124156]
[1749042630128,1.46564863,104890.0,104880.0,0.21124156]
[1749042630836,1.46540067,104890.0,104880.0,0.21124156]
[1749042633838,1.46540067,104890.0,104880.0,0.41692156]
[1749042635045,1.46540067,104890.0,104880.0,0.25916156]
[1749042635280,1.47452058,104890.0,104880.0,0.41688156]
[1749042636075,1.4745194,104890.0,104880.0,0.41688156]
[1749042636311,1.46540067,104890.0,104880.0,0.41688156]
[1749042637276,1.46540067,104890.0,104880.0,0.40874362]
[1749042637277,1.47451972,104890.0,104880.0,0.40874362]
[1749042640125,1.47452231,104890.0,104880.0,0.40874362]
[1749042644121,1.46540067,104890.0,104880.0,0.40874362]
[1749042644466,1.4745227,104890.0,104880.0,0.40874362]
[1749042644599,0.92917929,104890.0,104880.0,0.40874362]
[1749042645045,1.4745227,104890.0,104880.0,0.40874362]
[1749042646050,0.92917929,104890.0,104880.0,0.40874362]
[1749042647727,1.4745227,104890.0,104880.0,0.40874362]
[1749042648400,1.47452445,104890.0,104880.0,0.40874362]
[1749042649030,0.92918104,104890.0,104880.0,0.40874362]
[1749042650537,0.92005726,104890.0,104880.0,0.70874362]
[1749042651004,0.92005726,104890.0,104880.0,0.40874362]
[1749042652129,1.46540067,104890.0,104880.0,0.40874362]
[1749042653815,1.47452846,104890.0,104880.0,0.40874362]
[1749042654906,1.50312646,104890.0,104880.0,0.40874362]
[1749042656721,1.50313096,104890.0,104880.0,0.40874362]
[1749042658195,1.50313096,104890.0,104880.0,0.25102362]
[1749042658405,1.50313096,104890.0,104880.0,0.40874362]
[1749042660685,1.49399867,104890.0,104880.0,0.20926362]
[1749042660923,1.50313088,104890.0,104880.0,0.40858362]
[1749042661745,1.5028858,104890.0,104880.0,0.40858362]
[1749042663698,1.50288646,104890.0,104880.0,0.40858362]
[1749042667877,1.50288947,104890.0,104880.0,0.40858362]
[1749042668737,1.50288947,104890.0,104880.0,0.20926362]
[1749042668947,1.50288947,104890.0,104880.0,0.40858362]
[1749042669578,1.50288947,104890.0,104880.0,0.20926362]
[1749042669788,1.50288947,104890.0,104880.0,0.40858362]
[1749042670680,1.50288947,104890.0,104880.0,0.25086362]
[1749042670897,0.3702,104880.0,104840.0,0.37594096]
[1749042671123,0.3702,104880.0,104850.0,0.20568]
[1749042671124,0.0302,104860.0,104850.0,0.20568]
[1749042671378,0.0302,104860.0,104850.0,0.405]
[1749042671591,0.0042,104860.0,104850.0,0.20568]
[1749042671804,0.0042,104860.0,104850.0,0.405]
[1749042672010,0.0042,104860.0,104850.0,0.24728]
[1749042672225,0.0042,104860.0,104850.0,0.405]
[1749042672226,1.46349282,104860.0,104850.0,0.405]
[1749042672440,1.46349282,104860.0,104850.0,0.20568]
[1749042672662,1.46349282,104860.0,104850.0,0.405]
[1749042673503,1.46353282,104860.0,104850.0,0.405]
[1749042674348,1.46453282,104860.0,104850.0,0.405]
[1749042675426,1.49288367,104860.0,104850.0,0.405]
[1749042676294,0.39799685,104860.0,104850.0,0.405]
[1749042676548,0.91498941,104860.0,104850.0,0.7357]
[1749042676758,0.91498941,104860.0,104850.0,0.4357]
[1749042677179,0.91457648,104860.0,104850.0,0.4357]
[1749042678035,0.92415811,104860.0,104850.0,0.4357]
[1749042678596,0.88415811,104860.0,104850.0,0.4357]
[1749042678995,0.91276211,104860.0,104850.0,0.7357]
[1749042679220,0.88415811,104860.0,104850.0,0.7357]
[1749042679422,0.32923307,104860.0,104850.0,0.23638]
[1749042679649,0.87457648,104860.0,104850.0,0.45028085]
[1749042680321,0.32923307,104860.0,104850.0,0.84613515]
[1749042682141,0.87457648,104860.0,104850.0,0.84613515]
[1749042682509,0.87457648,104860.0,104850.0,0.84609515]
[1749042682709,0.87457648,104860.0,104850.0,1.14609515]
[1749042683300,0.87457648,104860.0,104850.0,0.81539515]
[1749042686354,0.83457648,104860.0,104850.0,0.81539515]
[1749042686717,0.83457648,104860.0,104850.0,0.83139515]
[1749042689494,0.83457648,104860.0,104850.0,0.84679515]
[1749042690702,0.83391485,104860.0,104850.0,0.84679515]
[1749042692450,0.83366706,104860.0,104850.0,0.84679515]
[1749042692826,0.54638341,104860.0,104850.0,0.84679515]
[1749042693429,0.54638341,104860.0,104850.0,0.84675515]
[1749042694766,0.54638341,104860.0,104850.0,0.83135515]
[1749042694981,0.88638341,104860.0,104850.0,0.83135515]
[1749042696036,0.88638341,104860.0,104850.0,0.67367515]
[1749042696238,0.88638341,104860.0,104850.0,0.81535515]
[1749042696892,0.88638341,104860.0,104850.0,0.61607515]
[1749042697241,0.88638341,104860.0,104850.0,0.81535515]
[1749042697457,0.90188341,104860.0,104850.0,0.81535515]
[1749042698342,0.90188341,104860.0,104850.0,0.61607515]
[1749042698544,0.90188341,104860.0,104850.0,0.81535515]
[1749042698750,0.90188341,104860.0,104850.0,0.71950085]
[1749042700082,0.87718341,104860.0,104850.0,0.40496]
[1749042700534,0.87718341,104860.0,104850.0,0.20568]
[1749042700739,0.87718341,104860.0,104850.0,0.40496]
[1749042707094,0.91614341,104860.0,104850.0,0.40496]
[1749042708039,0.90084341,104860.0,104850.0,0.40496]
[1749042708286,0.88534341,104860.0,104850.0,0.51535515]
[1749042708467,0.34,104860.0,104850.0,0.54835515]
[1749042708844,0.33892492,104860.0,104850.0,0.54835515]
[1749042709524,0.88426833,104860.0,104850.0,0.54835515]
[1749042709929,0.88426833,104860.0,104850.0,0.53185515]
[1749042710803,0.88426833,104860.0,104850.0,0.51531515]
[1749042714266,0.54534341,104860.0,104850.0,0.51531515]
[1749042718706,0.38052743,104870.0,104850.0,0.51531515]
[1749042718911,0.54534341,104860.0,104850.0,0.51531515]
[1749042720029,0.38152743,104870.0,104850.0,0.51531515]
[1749042720375,0.54534341,104860.0,104850.0,0.51531515]
[1749042720595,0.54534341,104860.0,104850.0,0.54561515]
[1749042720907,0.54534341,104860.0,104850.0,0.53061515]
[1749042721226,0.38152743,104870.0,104850.0,0.54691515]
[1749042721445,0.54534341,104860.0,104850.0,0.54691515]
[1749042721986,0.54634341,104860.0,104850.0,0.53061515]
[1749042722893,0.54634341,104860.0,104850.0,0.51531515]
[1749042723113,0.56234341,104860.0,104850.0,0.51523515]
[1749042723293,0.56209794,104860.0,104850.0,0.51523515]
[1749042723743,0.56209794,104860.0,104850.0,0.31607515]
[1749042724039,0.56209794,104860.0,104850.0,0.51523515]
[1749042725230,0.54609794,104860.0,104850.0,0.51523515]
[1749042728197,0.50609794,104860.0,104850.0,0.51523515]
[1749042728677,0.38112743,104870.0,104850.0,0.51523515]
[1749042728882,0.54534341,104860.0,104850.0,0.53093515]
[1749042730646,0.54534341,104860.0,104850.0,0.51523515]
[1749042731853,0.54634341,104860.0,104850.0,0.51623515]
[1749042732759,0.54634341,104860.0,104850.0,0.53123515]
[1749042732967,0.54634341,104860.0,104850.0,0.84753515]
[1749042733176,0.001,104860.0,104850.0,0.84753515]
[1749042733386,0.001,104860.0,104850.0,0.85713283]
[1749042733387,0.54596962,104860.0,104850.0,0.85713283]
[1749042734016,0.54596962,104860.0,104850.0,0.84083283]
[1749042734444,0.001,104860.0,104850.0,0.84083283]
[1749042734658,0.54596962,104860.0,104850.0,0.84083283]
[1749042735304,0.50596962,104860.0,104850.0,0.84083283]
[1749042736870,1.05093924,104860.0,104850.0,0.81619515]
[1749042737091,1.05093924,104860.0,104850.0,0.65863515]
[1749042737305,1.03995524,104860.0,104850.0,0.81619515]
[1749042737515,1.03995524,104860.0,104850.0,0.61707515]
[1749042737749,1.03995524,104860.0,104850.0,0.81619515]
[1749042738724,1.03995524,104860.0,104850.0,0.65863515]
[1749042738940,1.03995524,104860.0,104850.0,0.81619515]
[1749042741416,1.37888177,104860.0,104850.0,0.81619515]
[1749042741596,1.37888177,104860.0,104850.0,0.61707515]
[1749042741838,1.37888177,104860.0,104850.0,0.81619515]
[1749042742460,0.91726962,104860.0,104850.0,0.81619515]
[1749042742675,1.46223924,104860.0,104850.0,0.81619515]
[1749042743090,1.46223924,104860.0,104850.0,0.65863515]
[1749042743296,1.46223924,104860.0,104850.0,0.81619515]
[1749042745560,1.46223924,104860.0,104850.0,0.26274085]
[1749042745774,1.46223924,104860.0,104850.0,0.40576]
[1749042746811,1.46223924,104860.0,104850.0,0.20668]
[1749042747020,1.46223924,104860.0,104850.0,0.40576]
[1749042747668,1.46223924,104860.0,104850.0,0.2482]
[1749042747878,2.00720886,104860.0,104850.0,0.40576]
[1749042748086,2.00720886,104860.0,104850.0,0.20668]
[1749042748292,2.00720886,104860.0,104850.0,0.40576]
[1749042748498,1.46223924,104860.0,104850.0,0.40576]
[1749042750097,1.42223924,104860.0,104850.0,0.40576]
[1749042751312,0.3323,104860.0,104850.0,0.40576]
[1749042751571,1.42157765,104860.0,104850.0,0.40576]
[1749042752390,1.42133696,104860.0,104850.0,0.40576]
[1749042752662,0.87636734,104860.0,104850.0,0.42096]
[1749042753758,1.42133696,104860.0,104850.0,0.42096]
[1749042754407,0.87636734,104860.0,104850.0,0.43550085]
[1749042754615,1.42133696,104860.0,104850.0,0.43550085]
[1749042755195,0.87642836,104860.0,104850.0,0.43550085]
[1749042755416,0.87642836,104860.0,104850.0,0.45090085]
[1749042755573,0.33139772,104860.0,104850.0,0.45090085]
[1749042755997,0.33139772,104860.0,104850.0,0.75090085]
[1749042756199,0.33139772,104860.0,104850.0,0.45090085]
[1749042756637,0.33139772,104860.0,104850.0,0.75090085]
[1749042757033,0.33139772,104860.0,104850.0,0.45090085]
[1749042757713,0.29139772,104860.0,104850.0,0.45090085]
[1749042757948,0.54503064,104860.0,104850.0,0.45090085]
[1749042761660,0.55461958,104870.0,104850.0,0.84675515]
[1749042761873,0.55461958,104870.0,104850.0,1.14675515]
[1749042762086,0.54503064,104870.0,104850.0,1.14675515]
[1749042762515,0.55446342,104870.0,104860.0,0.3]
[1749042762753,0.04395547,104890.0,104860.0,0.7376673]
[1749042762962,0.02815547,104890.0,104870.0,0.28805784]
[1749042763180,0.58928611,104890.0,104880.0,0.04152]
[1749042763391,0.92928611,104890.0,104880.0,0.04152]
[1749042763596,0.38425547,104890.0,104880.0,0.04152]
[1749042763808,0.92928611,104890.0,104880.0,0.04152]
[1749042764247,0.93128611,104890.0,104880.0,0.04152]
[1749042764661,0.93228611,104890.0,104880.0,0.04152]
[1749042764879,0.89228611,104890.0,104880.0,0.19904]
[1749042765086,0.89628611,104890.0,104880.0,0.19904]
[1749042766372,1.46535173,104890.0,104880.0,0.19904]
[1749042766658,1.48412078,104890.0,104880.0,0.199]
[1749042768136,1.51592078,104890.0,104880.0,0.199]
[1749042768349,0.34,104880.0,104860.0,0.02817215]
[1749042768552,0.91743064,104880.0,104870.0,0.199]
[1749042769917,1.46246128,104880.0,104870.0,0.199]
[1749042770167,1.46346128,104880.0,104870.0,0.199]
[1749042770391,1.46546128,104880.0,104870.0,0.199]
[1749042770601,1.46446128,104880.0,104860.0,0.12402645]
[1749042770822,0.92243064,104880.0,104870.0,0.2]
[1749042771240,0.92243064,104880.0,104870.0,0.001]
[1749042771448,0.91743064,104880.0,104860.0,0.12402645]
[1749042771660,0.91743064,104880.0,104870.0,0.199]
[1749042771878,0.91843064,104880.0,104870.0,0.199]
[1749042772093,1.12346128,104880.0,104870.0,0.199]
[1749042772961,1.12246128,104880.0,104870.0,0.199]
[1749042773390,1.12546128,104880.0,104870.0,0.19996]
[1749042774043,1.46746128,104880.0,104870.0,0.001]
[1749042774330,1.46746128,104880.0,104870.0,0.19996]
[1749042776036,1.45166128,104880.0,104870.0,0.19996]
[1749042776249,1.43506128,104880.0,104870.0,0.19996]
[1749042778565,1.43506128,104880.0,104870.0,0.40568]
[1749042779113,1.09006128,104880.0,104870.0,0.40568]
[1749042780185,1.12176128,104880.0,104870.0,0.40568]
[1749042780827,1.12176128,104880.0,104870.0,0.2482]
[1749042781039,1.46176128,104880.0,104870.0,0.40568]
[1749042781221,1.43006128,104880.0,104870.0,0.40568]
[1749042786144,1.39006128,104880.0,104870.0,0.40568]
[1749042787018,1.39006128,104880.0,104870.0,0.2482]
[1749042787226,1.39006128,104880.0,104870.0,0.40564]
[1749042788063,1.42096128,104880.0,104870.0,0.40564]
[1749042788755,1.39006128,104880.0,104870.0,0.40564]
[1749042790182,1.43006128,104880.0,104870.0,0.42184]
[1749042790406,1.43006128,104880.0,104870.0,0.43834]
[1749042790620,1.42930373,104880.0,104870.0,0.43834]
[1749042792573,1.42930373,104880.0,104870.0,0.42184]
[1749042793208,1.38930373,104880.0,104870.0,0.42184]
[1749042795067,0.29924245,104880.0,104870.0,0.42184]
[1749042795523,1.38930373,104880.0,104870.0,0.42184]
[1749042796631,1.38930373,104880.0,104870.0,0.22292]
[1749042796858,1.38930373,104880.0,104870.0,0.42184]
[1749042797683,1.38930373,104880.0,104870.0,0.40564]
[1749042799394,1.42180373,104880.0,104870.0,0.40564]
[1749042800068,1.43093186,104880.0,104870.0,0.40564]
[1749042800292,1.39093186,104880.0,104870.0,0.20672]
[1749042800507,1.39093097,104880.0,104870.0,0.40564]
[1749042801678,1.39093097,104880.0,104870.0,0.2482]
[1749042801914,1.39093097,104880.0,104870.0,0.40564]
[1749042802143,1.48678527,104880.0,104870.0,0.2482]
[1749042802405,1.48678331,104880.0,104870.0,0.40564]
[1749042803159,2.03181395,104880.0,104870.0,0.20672]
[1749042803397,2.01072055,104880.0,104860.0,0.01187215]
[1749042803657,1.18591558,104870.0,104860.0,0.01187215]
[1749042803920,1.19504086,104870.0,104860.0,0.01187215]
[1749042804174,1.22654086,104870.0,104860.0,0.25903215]
[1749042804676,1.22654086,104870.0,104860.0,0.41747215]
[1749042805139,1.22654086,104870.0,104860.0,0.41647215]
[1749042805379,1.22654086,104870.0,104860.0,0.41643215]
[1749042806411,1.22652283,104870.0,104860.0,0.41743215]
[1749042807568,1.18652283,104870.0,104860.0,0.41743215]
[1749042808212,1.18652283,104870.0,104860.0,0.41747215]
[1749042808431,1.18569686,104870.0,104860.0,0.41747215]
[1749042809031,1.18569686,104870.0,104860.0,0.26003215]
[1749042809203,1.18545175,104870.0,104860.0,0.41743215]
[1749042809596,1.18545175,104870.0,104860.0,0.21859215]
[1749042809803,1.18545175,104870.0,104860.0,0.41747215]
[1749042810493,1.18544136,104870.0,104860.0,0.41747215]
[1749042811195,1.52544136,104870.0,104860.0,0.04144]
[1749042811420,0.0317,104860.0,104830.0,0.10604096]
[1749042811653,0.54503064,104840.0,104830.0,0.10604096]
[1749042812344,0.88503064,104850.0,104840.0,0.0318]
[1749042812762,1.43006128,104850.0,104840.0,0.043551]
[1749042812994,1.42906128,104850.0,104840.0,0.04359919]
[1749042813441,1.42906128,104850.0,104840.0,0.20103919]
[1749042813882,1.43006128,104850.0,104840.0,0.20303919]
[1749042814102,0.88503064,104850.0,104840.0,0.25335919]
[1749042814322,0.88503064,104850.0,104840.0,0.45223919]
[1749042814532,0.54603064,104850.0,104840.0,0.45223919]
[1749042814737,0.54536864,104850.0,104840.0,0.45223919]
[1749042815392,1.09039928,104850.0,104840.0,0.45223919]
[1749042816036,0.54603064,104850.0,104840.0,0.45223919]
[1749042816637,0.54603064,104850.0,104840.0,0.75223919]
[1749042816839,0.54603064,104850.0,104840.0,0.45223919]
[1749042818254,1.09106128,104850.0,104840.0,0.45223919]
[1749042821237,0.54603064,104850.0,104840.0,0.45223919]
[1749042821656,0.50603064,104850.0,104840.0,0.45223919]
[1749042821881,0.50578544,104850.0,104840.0,0.45223919]
[1749042825583,0.84578544,104850.0,104840.0,0.45223919]
[1749042827392,0.84578544,104850.0,104840.0,0.29479919]
[1749042827608,0.84578544,104850.0,104840.0,0.45219919]
[1749042828684,0.80578544,104850.0,104840.0,0.45219919]
[1749042829170,0.34,104850.0,104840.0,0.45219919]
[1749042829396,0.34,104850.0,104840.0,0.56259434]
[1749042829614,0.00911509,104870.0,104850.0,0.0325]
[1749042829615,0.88503064,104860.0,104850.0,0.0325]
[1749042829844,0.08782386,104890.0,104850.0,0.09823845]
[1749042830061,0.57099646,104890.0,104880.0,0.0325]
[1749042830278,0.57099646,104890.0,104880.0,0.1899]
[1749042830279,0.56187994,104890.0,104880.0,0.1899]
[1749042830725,0.90187994,104890.0,104880.0,0.1899]
[1749042830934,0.56187994,104890.0,104880.0,0.1899]
[1749042831357,0.90187994,104890.0,104880.0,0.1899]
[1749042831567,0.88503064,104890.0,104880.0,0.1899]
[1749042832224,0.88603064,104890.0,104880.0,0.1899]
[1749042832473,0.54603064,104890.0,104880.0,0.1899]
[1749042833786,0.88603064,104890.0,104880.0,0.1899]
[1749042834216,0.88603064,104890.0,104880.0,0.19876]
[1749042834671,0.88603064,104890.0,104870.0,0.032]
[1749042834880,0.341,104890.0,104880.0,0.19876]
[1749042835093,0.341,104890.0,104880.0,0.21396]
[1749042835295,0.341,104890.0,104880.0,0.22946]
[1749042835620,0.34,104890.0,104880.0,0.22946]
[1749042836116,0.88503064,104890.0,104880.0,0.22946]
[1749042837621,0.88603064,104890.0,104880.0,0.22946]
[1749042839601,0.88603064,104890.0,104880.0,0.22942]
[1749042839817,0.88603064,104890.0,104880.0,0.0721]
[1749042840041,0.34,104880.0,104870.0,4.819e-05]
[1749042840269,1.43006128,104880.0,104870.0,4.819e-05]
[1749042840484,1.43006128,104880.0,104870.0,0.04144819]
[1749042840718,1.46106128,104880.0,104870.0,0.19876819]
[1749042841382,1.46106128,104880.0,104870.0,0.19976819]
[1749042842321,1.46206128,104880.0,104870.0,0.19976819]
[1749042842788,1.46206128,104880.0,104870.0,0.04144819]
[1749042842789,1.46164839,104880.0,104870.0,0.04144819]
[1749042843032,1.46164839,104880.0,104870.0,0.19876819]
[1749042843033,1.47948735,104880.0,104870.0,0.19876819]
[1749042843331,1.50809035,104880.0,104870.0,0.19876819]
[1749042843564,1.49025139,104880.0,104870.0,0.19876819]
[1749042843800,1.50809006,104880.0,104870.0,4.819e-05]
[1749042844028,1.50809006,104880.0,104870.0,0.19876819]
[1749042844261,1.50809008,104880.0,104870.0,0.19876819]
[1749042844492,1.50808999,104880.0,104870.0,0.19876819]
[1749042844724,1.49025139,104880.0,104870.0,0.19876819]
[1749042845184,1.50809004,104880.0,104870.0,0.19876819]
[1749042845418,1.49025139,104880.0,104870.0,0.19876819]
[1749042846853,1.50808987,104880.0,104870.0,0.19876819]
[1749042847128,1.49025139,104880.0,104870.0,0.19876819]
[1749042847345,1.50808975,104880.0,104870.0,0.19876819]
[1749042847565,1.49025139,104880.0,104870.0,0.19876819]
[1749042847990,1.50808975,104880.0,104870.0,0.19876819]
[1749042848257,1.49025139,104880.0,104870.0,0.19876819]
[1749042848456,1.49025139,104880.0,104870.0,4.819e-05]
[1749042848727,1.50808975,104880.0,104870.0,0.19876819]
[1749042848965,1.58610569,104880.0,104870.0,0.04144819]
[1749042849202,1.58610569,104880.0,104870.0,0.19876819]
[1749042849675,1.54610569,104880.0,104870.0,0.19876819]
[1749042849912,1.56394404,104880.0,104870.0,0.19876819]
[1749042850143,1.56394408,104880.0,104870.0,0.19876819]
[1749042850376,1.54610569,104880.0,104870.0,0.19876819]
[1749042851151,1.54610569,104880.0,104870.0,0.19872819]
[1749042851389,1.54610569,104880.0,104870.0,0.40444819]
[1749042852082,1.56394415,104880.0,104870.0,0.40444819]
[1749042852328,1.54610569,104880.0,104870.0,0.40444819]
[1749042853899,1.5639442,104880.0,104870.0,0.40444819]
[1749042854119,1.54610569,104880.0,104870.0,0.40444819]
[1749042854343,1.5639442,104880.0,104870.0,0.40444819]
[1749042854561,1.54610569,104880.0,104870.0,0.40444819]
[1749042856058,1.56394443,104880.0,104870.0,0.40444819]
[1749042856258,1.54544506,104880.0,104870.0,0.40444819]
[1749042856884,1.50544506,104880.0,104870.0,0.40444819]
[1749042857288,1.37859076,104880.0,104870.0,0.40444819]
[1749042857695,1.39643102,104880.0,104870.0,0.40444819]
[1749042857900,1.37859076,104880.0,104870.0,0.40444819]
[1749042859176,1.37859076,104880.0,104870.0,0.42024819]
[1749042859952,0.029603,104880.0,104870.0,0.42024819]
[1749042860157,1.45966428,104880.0,104870.0,0.42024819]
[1749042861490,0.369603,104880.0,104870.0,0.42024819]
[1749042861700,1.45966428,104880.0,104870.0,0.42024819]
[1749042862293,1.45966428,104880.0,104870.0,0.43584819]
[1749042867661,1.45966428,104880.0,104870.0,0.40432819]
[1749042869923,1.49196428,104880.0,104870.0,0.40432819]
[1749042870118,1.45966428,104880.0,104870.0,0.40432819]
[1749042872068,1.41966428,104880.0,104870.0,0.40432819]
[1749042872425,1.44826628,104880.0,104870.0,0.40432819]
[1749042872636,1.41966428,104880.0,104870.0,0.40432819]
[1749042875263,1.41900454,104880.0,104870.0,0.40432819]
[1749042875668,1.41900454,104880.0,104870.0,0.20576819]
[1749042875879,1.41900454,104880.0,104870.0,0.40432819]
[1749042876091,1.43430454,104880.0,104870.0,0.40432819]
[1749042876284,1.43405619,104880.0,104870.0,0.40432819]
[1749042876487,1.54631049,104880.0,104870.0,0.20576819]
[1749042876827,1.54631049,104880.0,104870.0,0.40428819]
[1749042877581,1.54631049,104880.0,104870.0,0.20576819]
[1749042878007,1.54631049,104880.0,104870.0,0.40428819]
[1749042878644,1.54631049,104880.0,104870.0,0.20576819]
[1749042878879,1.54631049,104880.0,104870.0,0.40428819]
[1749042881530,1.57491449,104880.0,104870.0,0.40428819]
[1749042881768,2.11994513,104880.0,104870.0,0.40428819]
[1749042881968,0.34,104870.0,104850.0,0.0323]
[1749042882336,0.4673543,104870.0,104860.0,0.24708]
[1749042882553,0.4673543,104870.0,104850.0,9.209e-05]
[1749042882760,0.0958543,104860.0,104850.0,9.209e-05]
[1749042883324,1.52591558,104860.0,104850.0,9.209e-05]
[1749042883739,1.52591558,104860.0,104850.0,0.15729209]
[1749042883938,1.52491558,104860.0,104850.0,0.15729209]
[1749042884140,1.52491558,104860.0,104850.0,0.40437209]
[1749042886203,1.43006128,104860.0,104850.0,0.40437209]
[1749042887056,1.42940271,104860.0,104850.0,0.40437209]
[1749042888066,1.42899099,104860.0,104850.0,0.40437209]
[1749042888417,1.42899099,104860.0,104850.0,0.24717209]
[1749042888629,1.42899099,104860.0,104850.0,0.43607209]
[1749042888849,1.45759999,104860.0,104850.0,0.43607209]
[1749042893300,0.91363964,104860.0,104850.0,0.43607209]
[1749042893497,1.45867028,104860.0,104850.0,0.43607209]
[1749042898516,1.43006128,104860.0,104850.0,0.43607209]
[1749042900402,1.39006128,104860.0,104850.0,0.43607209]
[1749042901352,1.97589475,104860.0,104850.0,0.43607209]
[1749042901572,1.4305965,104860.0,104850.0,0.43607209]
[1749042901838,1.97589475,104860.0,104850.0,0.43607209]
[1749042903243,1.43047108,104860.0,104850.0,0.43607209]
[1749042904841,1.43047108,104860.0,104850.0,0.27887209]
[1749042905090,1.43047108,104860.0,104850.0,0.41939209]
[1749042906000,1.43047108,104860.0,104850.0,0.43519209]
[1749042907131,1.43934904,104860.0,104850.0,0.43519209]
[1749042907351,1.39934904,104860.0,104850.0,0.27807209]
[1749042907589,1.39934904,104860.0,104850.0,0.43519209]
[1749042910708,1.39935733,104860.0,104850.0,0.43519209]
[1749042914448,1.39935733,104860.0,104850.0,0.27807209]
[1749042914705,1.35935733,104860.0,104850.0,0.43515209]
[1749042914949,1.3502314,104860.0,104850.0,0.43515209]
[1749042915172,1.35936049,104860.0,104850.0,0.43515209]
[1749042915398,1.35936049,104860.0,104850.0,0.20585209]
[1749042915621,1.35936049,104860.0,104850.0,0.40421209]
[1749042916491,1.37718965,104860.0,104850.0,0.40421209]
[1749042917340,1.36806056,104860.0,104850.0,0.40421209]
[1749042917609,1.37718838,104860.0,104850.0,0.40421209]
[1749042918053,1.37718838,104860.0,104850.0,0.20585209]
[1749042918054,1.3950168,104860.0,104850.0,0.20585209]
[1749042918219,1.37718838,104860.0,104850.0,0.40421209]
[1749042918826,1.39501655,104860.0,104850.0,0.40421209]
[1749042919039,1.37718824,104860.0,104850.0,0.40421209]
[1749042919485,1.39501641,104860.0,104850.0,0.40421209]
[1749042919681,1.39501641,104860.0,104850.0,0.24704]
[1749042919682,1.59825376,104860.0,104850.0,0.24704]
[1749042919894,0.34,104850.0,104830.0,0.0312]
[1749042920117,0.88416486,104840.0,104830.0,0.0312]
[1749042920324,0.88416486,104840.0,104830.0,0.18828]
[1749042921016,0.9438832,104840.0,104830.0,0.18828]
[1749042921216,0.9438832,104840.0,104830.0,0.1972045]
[1749042921528,0.9428832,104840.0,104830.0,0.0312]
[1749042921737,0.9428832,104840.0,104830.0,0.18828]
[1749042921738,0.9028832,104840.0,104830.0,0.18828]
[1749042922357,0.9038832,104840.0,104830.0,0.19028]
[1749042922798,0.9038832,104840.0,104830.0,0.002]
[1749042923036,0.91300333,104840.0,104830.0,0.16008]
[1749042923258,0.91200333,104840.0,104830.0,0.15708]
[1749042923683,1.44811874,104840.0,104830.0,0.15708]
[1749042923900,0.39971834,104840.0,104820.0,0.0321]
[1749042924114,0.39971834,104840.0,104830.0,0.40416]
[1749042924561,0.40071834,104840.0,104830.0,0.40516]
[1749042924993,0.39971834,104840.0,104830.0,0.40416]
[1749042925205,0.40271834,104840.0,104830.0,0.40516]
[1749042925413,1.58904372,104840.0,104830.0,0.24808]
[1749042925625,1.59916206,104840.0,104830.0,0.40516]
[1749042925944,1.59916206,104840.0,104830.0,0.24808]
[1749042926165,1.59916206,104840.0,104830.0,0.40516]
[1749042926366,1.63096206,104840.0,104830.0,0.40516]
[1749042927006,1.64877752,104840.0,104830.0,0.40516]
[1749042927296,1.63317751,104840.0,104830.0,0.40516]
[1749042927503,1.59916206,104840.0,104830.0,0.40516]
[1749042927735,1.61697792,104840.0,104830.0,0.40516]
[1749042927863,1.59916206,104840.0,104830.0,0.40516]
[1749042928088,1.61697739,104840.0,104830.0,0.40516]
[1749042928291,1.59916206,104840.0,104830.0,0.40516]
[1749042928694,1.55916206,104840.0,104830.0,0.40516]
[1749042929280,1.55916206,104840.0,104820.0,0.0321]
[1749042929281,1.65167328,104840.0,104820.0,0.0321]
[1749042929495,0.4653479,104840.0,104830.0,0.0412]
[1749042929714,0.0341777,104830.0,104800.0,0.01]
[1749042929933,0.54523554,104820.0,104810.0,0.1754]
[1749042930143,0.0505777,104830.0,104810.0,0.1754]
[1749042930363,1.09047108,104820.0,104810.0,0.1754]
[1749042930579,0.5006841,104840.0,104810.0,0.159]
[1749042930580,0.49017264,104840.0,104810.0,0.159]
[1749042930797,0.4358543,104830.0,104820.0,0.316]
[1749042931071,0.34,104830.0,104820.0,0.016]
[1749042931286,0.34,104830.0,104820.0,0.02492615]
[1749042931515,0.34,104830.0,104820.0,0.17568327]
[1749042931739,0.1844837,104840.0,104830.0,0.316]
[1749042931740,0.08253362,104840.0,104830.0,0.316]
[1749042931968,0.94795388,104840.0,104830.0,0.016]
[1749042932193,0.94495388,104840.0,104830.0,0.016]
[1749042932430,0.60495388,104840.0,104830.0,0.316]
[1749042932659,0.05971834,104840.0,104830.0,0.0321]
[1749042932917,0.60495388,104840.0,104830.0,0.0321]
[1749042933136,0.54923554,104840.0,104830.0,0.0321]
[1749042933755,0.55123554,104840.0,104830.0,0.0321]
[1749042933965,0.92015299,104840.0,104830.0,0.0321]
[1749042934173,0.92015299,104840.0,104830.0,0.2791]
[1749042934593,0.37491745,104840.0,104830.0,0.2791]
[1749042935083,0.92015299,104840.0,104830.0,0.43846]
[1749042935718,0.94620094,104840.0,104830.0,0.43846]
[1749042935948,0.92015299,104840.0,104830.0,0.43846]
[1749042939256,0.346,104840.0,104830.0,0.43846]
[1749042939467,0.89123554,104840.0,104830.0,0.43846]
[1749042940303,0.89123554,104840.0,104830.0,0.5343143]
[1749042940515,0.346,104840.0,104830.0,0.5343143]
[1749042940743,0.89123554,104840.0,104830.0,0.54885515]
[1749042941600,0.88523554,104840.0,104830.0,0.54885515]
[1749042941800,0.88623554,104840.0,104830.0,0.54985515]
[1749042942427,0.88623554,104840.0,104830.0,0.34929515]
[1749042942716,0.88623554,104840.0,104830.0,0.2801]
[1749042942913,0.88623554,104840.0,104830.0,0.43954]
[1749042943587,0.84623554,104840.0,104830.0,0.43954]
[1749042944033,0.84623554,104840.0,104830.0,0.42344]
[1749042944647,0.84623554,104840.0,104830.0,0.264]
[1749042944855,0.84623554,104840.0,104830.0,0.40744]